bitfinex/quotes_SOLUSD_20250912
["timestamp","ask_amount","ask_price","bid_price","bid_amount"]
[1757685109543,13.59559401,238.5,238.48,0.03]
[1757685110339,0.68,238.54,238.48,0.74]
[1757685110514,13.59559401,238.53,238.48,0.74]
[1757685110926,13.59559401,238.53,238.48,0.03]
[1757685111433,0.68,238.52,238.48,0.03]
[1757685111608,6.4852451,238.51,238.49,0.03]
[1757685111917,7.1652451,238.51,238.49,0.03]
[1757685112321,20.76083911,238.5,238.49,0.03]
[1757685113247,40.76083911,238.5,238.49,0.03]
[1757685113615,44.95371122,238.5,238.49,0.03]
[1757685115622,39.59559401,238.47,238.46,0.03]
[1757685115828,80.14083911,238.47,238.46,0.03]
[1757685116127,80.83083911,238.47,238.46,0.03]
[1757685116512,13.59559401,238.42,238.29,0.03]
[1757685116734,20.08083911,238.42,238.29,0.03]
[1757685117025,20.77083911,238.42,238.29,0.03]
[1757685117631,20.08083911,238.42,238.37,0.88]
[1757685117824,24.27511811,238.42,238.37,0.88]
[1757685118027,24.96511811,238.42,238.37,0.2]
[1757685118935,20.08083911,238.42,238.37,0.2]
[1757685119242,24.27511811,238.42,238.37,0.2]
[1757685119540,20.08083911,238.42,238.37,0.2]
[1757685120502,20.08083911,238.42,238.39,0.68]
[1757685120503,24.27511811,238.42,238.39,0.68]
[1757685120933,24.27511811,238.42,238.37,0.2]
[1757685121135,12.50579999,238.5,238.41,0.81]
[1757685121437,13.59559401,238.5,238.41,0.81]
[1757685121609,4.19234477,238.53,238.41,0.81]
[1757685121813,38.25206159,238.55,238.41,5.00442222]
[1757685122007,44.73730669,238.55,238.42,0.68]
[1757685122340,13.59559401,238.5,238.42,0.68]
[1757685122636,6.4852451,238.49,238.42,0.68]
[1757685122841,6.4852451,238.45,238.41,0.13]
[1757685123011,13.59559401,238.45,238.41,0.81]
[1757685123211,13.59559401,238.45,238.42,0.68]
[1757685123522,6.4852451,238.47,238.42,0.68]
[1757685123732,4.19351939,238.47,238.43,0.68]
[1757685124117,17.78890071,238.48,238.41,0.13]
[1757685124336,13.59559401,238.45,238.41,0.13]
[1757685124635,6.4852451,238.44,238.41,0.13]
[1757685124836,6.4852451,238.45,238.41,0.13]
[1757685125837,13.59559401,238.44,238.41,0.13]
[1757685126134,13.59559401,238.44,238.42,0.68]
[1757685126434,13.59559401,238.45,238.42,0.68]
[1757685126812,13.59559401,238.45,238.41,0.13]
[1757685127012,13.59559401,238.45,238.41,0.81]
[1757685127538,17.78900332,238.47,238.41,0.81]
[1757685127728,17.78900332,238.47,238.41,0.13]
[1757685127729,13.59559401,238.47,238.41,0.13]
[1757685128044,13.59559401,238.49,238.42,0.68]
[1757685128419,13.59559401,238.49,238.41,0.13]
[1757685128420,14.28559401,238.49,238.41,0.13]
[1757685130010,26.0,238.51,238.42,0.68]
[1757685130322,13.59559401,238.52,238.43,26.0]
[1757685130647,0.06,238.56,238.44,26.68]
[1757685130946,0.06,238.56,238.45,0.68]
[1757685131824,4.2518193,238.56,238.45,0.68]
[1757685132029,4.2518193,238.56,238.45,60.64]
[1757685132349,4.2518193,238.56,238.46,0.68]
[1757685132516,20.08083911,238.54,238.43,80.9]
[1757685132717,6.4852451,238.5,238.43,80.9]
[1757685133039,13.59559401,238.51,238.44,0.68]
[1757685134638,13.59559401,238.54,238.44,26.68]
[1757685134944,13.59559401,238.52,238.44,26.0]
[1757685135119,13.59559401,238.52,238.43,0.68]
[1757685135320,3.45446893,238.51,238.41,26.13]
[1757685135554,13.59559401,238.49,238.41,26.13]
[1757685135736,13.59559401,238.49,238.42,0.68]
[1757685136051,17.78864802,238.49,238.42,0.68]
[1757685136260,13.59559401,238.47,238.41,0.13]
[1757685136549,16.36006294,238.47,238.41,0.13]
[1757685137041,2.76446893,238.46,238.41,0.13]
[1757685137243,2.76446893,238.45,238.41,0.13]
[1757685137419,0.69,238.46,238.41,0.13]
[1757685137420,2.76446893,238.44,238.41,0.13]
[1757685137624,2.76446893,238.43,238.41,0.13]
[1757685137845,2.76446893,238.42,238.41,0.13]
[1757685138339,2.76446893,238.43,238.41,0.13]
[1757685138545,2.76446893,238.42,238.41,0.13]
[1757685138727,6.95861559,238.43,238.41,0.13]
[1757685138927,2.76446893,238.42,238.41,0.13]
[1757685139335,17.05006294,238.42,238.41,0.13]
[1757685139538,16.36006294,238.42,238.41,0.13]
[1757685139739,2.76446893,238.42,238.41,0.13]
[1757685141450,6.95874793,238.42,238.41,0.13]
[1757685141652,4.194279,238.42,238.41,0.13]
[1757685141944,6.95874793,238.42,238.41,0.13]
[1757685142130,2.76446893,238.42,238.41,0.13]
[1757685142332,2.76446893,238.43,238.41,0.13]
[1757685142652,2.76446893,238.42,238.41,0.13]
[1757685143326,17.05006294,238.42,238.41,0.13]
[1757685144150,21.24434194,238.42,238.41,0.13]
[1757685145169,21.24434194,238.42,238.41,1e-08]
[1757685146246,21.24434194,238.42,238.38,0.03]
[1757685146247,13.59559401,238.41,238.38,0.03]
[1757685146449,9.89770655,238.39,238.38,0.03]
[1757685146958,9.89770655,238.39,238.31,0.13]
[1757685146959,26.0,238.39,238.31,0.13]
[1757685147134,26.0,238.39,238.24,0.2]
[1757685147135,39.59559401,238.28,238.24,0.2]
[1757685147330,52.27110212,238.28,238.24,0.2]
[1757685147533,52.95110212,238.28,238.24,0.2]
[1757685147931,43.05339557,238.28,238.24,0.2]
[1757685148135,39.59559401,238.28,238.24,0.2]
[1757685148345,54.37004388,238.28,238.24,0.2]
[1757685148538,57.14611463,238.28,238.24,0.2]
[1757685148743,91.98611463,238.28,238.24,0.2]
[1757685149156,91.96611463,238.28,238.24,0.2]
[1757685150274,89.19004388,238.28,238.24,0.2]
[1757685150465,91.96158633,238.28,238.24,0.2]
[1757685150662,99.68190219,238.28,238.24,0.2]
[1757685150967,23.49330056,238.25,238.24,0.2]
[1757685151148,58.31330056,238.25,238.24,0.2]
[1757685151469,58.99330056,238.25,238.24,0.2]
[1757685151871,14.27559401,238.25,238.24,0.2]
[1757685152065,58.27330056,238.25,238.24,0.2]
[1757685152443,13.59559401,238.25,238.24,0.2]
[1757685152650,23.49330056,238.25,238.24,0.2]
[1757685153350,13.59559401,238.25,238.24,0.87]
[1757685153550,44.65770655,238.26,238.24,0.87]
[1757685153751,4.19655709,238.3,238.24,0.87]
[1757685153969,13.59559401,238.29,238.25,0.67]
[1757685154180,9.89770655,238.3,238.26,0.67]
[1757685154363,9.89770655,238.3,238.27,0.67]
[1757685154550,13.59559401,238.31,238.28,0.67]
[1757685154751,17.79182543,238.31,238.25,0.67]
[1757685154988,9.89770655,238.3,238.25,0.67]
[1757685155269,9.89770655,238.32,238.25,0.67]
[1757685156375,14.09377595,238.32,238.25,0.67]
[1757685157569,9.89770655,238.3,238.25,0.67]
[1757685157978,9.89770655,238.3,238.26,0.67]
[1757685159256,9.89770655,238.3,238.24,0.2]
[1757685159471,9.89770655,238.32,238.27,0.67]
[1757685159670,9.89770655,238.32,238.28,0.67]
[1757685159876,9.89770655,238.3,238.24,0.87]
[1757685161271,14.09410608,238.3,238.24,0.87]
[1757685161465,9.89770655,238.28,238.24,0.2]
[1757685161983,9.89770655,238.26,238.24,0.2]
[1757685162153,9.89770655,238.27,238.24,0.2]
[1757685162356,0.68,238.3,238.24,0.87]
[1757685162667,9.89770655,238.29,238.24,0.87]
[1757685162856,9.89770655,238.29,238.25,0.67]
[1757685163057,23.49330056,238.31,238.26,0.67]
[1757685163279,23.49330056,238.31,238.27,0.67]
[1757685163475,23.49330056,238.32,238.27,0.67]
[1757685164689,23.49330056,238.32,238.28,0.67]
[1757685164976,23.49330056,238.32,238.25,0.67]
[1757685165379,4.1957045,238.34,238.25,0.67]
[1757685165380,0.68,238.33,238.25,0.67]
[1757685165591,9.89770655,238.31,238.25,0.67]
[1757685165905,9.89770655,238.35,238.25,0.67]
[1757685166073,9.89770655,238.35,238.25,4.86722229]
[1757685166393,9.89770655,238.35,238.26,0.67]
[1757685166768,9.89770655,238.35,238.27,26.0]
[1757685166972,9.89770655,238.37,238.28,26.67]
[1757685167187,9.89770655,238.37,238.29,0.67]
[1757685168463,9.89770655,238.38,238.3,26.0]
[1757685168657,9.89770655,238.39,238.31,0.67]
[1757685168860,0.68,238.4,238.31,0.67]
[1757685169075,10.57770655,238.4,238.31,0.67]
[1757685169281,9.89770655,238.38,238.31,0.67]
[1757685169580,9.89770655,238.38,238.31,26.0]
[1757685169781,10.57770655,238.38,238.31,26.0]
[1757685170776,10.57770655,238.38,238.29,0.67]
[1757685170777,9.89770655,238.36,238.29,0.67]
[1757685171182,10.57770655,238.36,238.29,0.67]
[1757685173398,0.68,238.36,238.29,0.67]
[1757685173599,9.89770655,238.35,238.26,0.67]
[1757685173806,9.89770655,238.33,238.27,34.4]
[1757685174100,9.89770655,238.33,238.27,34.43]
[1757685174875,4.19539016,238.36,238.3,26.0]
[1757685174876,9.89770655,238.35,238.3,26.0]
[1757685175294,0.71,238.34,238.3,26.0]
[1757685175589,14.09322949,238.35,238.31,26.0]
[1757685175768,10.60770655,238.33,238.28,26.0]
[1757685175967,9.89770655,238.31,238.28,26.0]
[1757685176169,10.60770655,238.31,238.28,26.0]
[1757685176366,9.89770655,238.31,238.28,26.0]
[1757685176596,0.71,238.3,238.28,26.0]
[1757685176998,9.89770655,238.31,238.28,26.0]
[1757685177692,9.89770655,238.29,238.27,0.03]
[1757685178079,0.06,238.37,238.27,0.03]
[1757685178389,9.89770655,238.29,238.27,0.03]
[1757685179188,9.89770655,238.31,238.27,0.03]
[1757685180277,9.89770655,238.33,238.28,0.69]
[1757685180605,9.89770655,238.36,238.29,0.69]
[1757685180785,9.89770655,238.36,238.31,26.0]
[1757685180986,9.89770655,238.36,238.31,26.69]
[1757685181203,0.06,238.37,238.32,26.69]
[1757685181404,0.06,238.37,238.32,41.37606067]
[1757685181585,0.06,238.37,238.33,0.69]
[1757685181975,0.06,238.37,238.34,34.99]
[1757685182179,0.06,238.37,238.36,26.0]
[1757685182592,0.06,238.37,238.36,26.69]
[1757685182811,0.06,238.37,238.27,0.03]
[1757685182979,0.06,238.37,238.32,0.69]
[1757685183284,0.06,238.37,238.33,60.99]
[1757685183597,0.06,238.37,238.36,26.0]
[1757685184009,0.06,238.37,238.36,26.69]
[1757685184177,0.06,238.37,238.36,26.0]
[1757685185598,0.77,238.37,238.36,26.0]
[1757685187819,10.66770655,238.37,238.35,26.0]
[1757685188102,0.06,238.37,238.35,26.0]
[1757685191127,9.95770655,238.37,238.32,80.9]
[1757685191315,9.95770655,238.37,238.31,26.0]
[1757685191316,9.89770655,238.34,238.31,80.9]
[1757685192216,9.89770655,238.35,238.31,80.9]
[1757685192701,10.60770655,238.36,238.31,81.59]
[1757685192902,0.06,238.37,238.32,0.69]
[1757685193111,0.06,238.37,238.33,34.85]
[1757685193289,0.06,238.37,238.34,0.69]
[1757685193816,0.06,238.37,238.36,26.0]
[1757685194229,0.06,238.37,238.36,26.69]
[1757685195432,0.06,238.37,238.36,60.85]
[1757685195601,0.06,238.37,238.36,65.04533478]
[1757685195802,0.06,238.37,238.36,60.85]
[1757685196002,0.06,238.37,238.36,34.83]
[1757685199125,0.06,238.37,238.36,60.83]
[1757685201021,0.06,238.37,238.34,80.9]
[1757685201215,0.06,238.37,238.36,34.06]
[1757685201722,0.06,238.37,238.36,34.75]
[1757685202109,0.06,238.37,238.36,119.84533478]
[1757685204810,0.06,238.37,238.36,81.59]
[1757685205017,0.06,238.37,238.36,115.61]
[1757685205413,0.06,238.4,238.39,26.0]
[1757685205610,0.06,238.4,238.39,140.84]
[1757685205806,0.06,238.4,238.39,141.54]
[1757685206418,0.06,238.42,238.4,13.59559401]
[1757685206730,0.1,238.49,238.44,26.0]
[1757685206920,0.1,238.49,238.48,26.0]
[1757685207122,0.1,238.49,238.48,60.02]
[1757685208006,0.1,238.49,238.48,34.02]
[1757685208410,0.1,238.49,238.48,38.21322375]
[1757685208631,0.1,238.49,238.48,38.91322375]
[1757685212935,0.1,238.49,238.46,4.19340617]
[1757685213133,0.1,238.49,238.47,33.92]
[1757685214238,0.1,238.49,238.48,4.19322375]
[1757685214437,0.16,238.49,238.48,4.19322375]
[1757685215533,0.87,238.49,238.48,59.88]
[1757685215737,0.16,238.49,238.48,59.88]
[1757685216950,0.16,238.49,238.48,64.07322375]
[1757685217840,0.16,238.49,238.48,64.77322375]
[1757685218251,0.16,238.49,238.48,59.88]
[1757685219050,0.16,238.49,238.48,144.91322375]
[1757685220732,0.87,238.49,238.48,140.72]
[1757685220938,0.16,238.49,238.48,140.72]
[1757685221137,0.16,238.49,238.48,106.84]
[1757685221557,0.87,238.49,238.48,114.62]
[1757685221846,0.87,238.49,238.44,106.84]
[1757685222054,0.71,238.48,238.45,33.78]
[1757685223949,0.16,238.49,238.46,0.7]
[1757685224256,0.16,238.49,238.47,33.74]
[1757685224558,0.16,238.49,238.44,80.84]
[1757685224738,0.71,238.48,238.45,33.74]
[1757685225138,0.71,238.48,238.45,114.58]
[1757685226561,0.71,238.47,238.45,114.58]
[1757685226765,0.16,238.49,238.45,114.58]
[1757685227069,0.71,238.48,238.45,114.58]
[1757685228360,0.16,238.49,238.45,114.58]
[1757685228662,0.16,238.49,238.46,0.7]
[1757685228842,0.16,238.49,238.47,34.36]
[1757685229040,0.16,238.49,238.47,33.66]
[1757685229457,0.16,238.49,238.47,38.55337991]
[1757685229758,0.16,238.49,238.47,33.66]
[1757685230244,0.87,238.49,238.47,33.66]
[1757685230449,0.16,238.49,238.47,33.66]
[1757685230960,0.16,238.49,238.47,114.5]
[1757685231755,0.16,238.49,238.48,0.7]
[1757685231961,0.16,238.49,238.48,81.54]
[1757685232268,0.06,238.52,238.51,26.0]
[1757685232466,0.06,238.52,238.51,59.66]
[1757685232647,0.06,238.54,238.51,60.36]
[1757685232966,0.06,238.54,238.52,0.7]
[1757685233158,0.06,238.54,238.53,33.66]
[1757685233552,0.06,238.54,238.53,38.55234477]
[1757685235858,0.06,238.54,238.53,132.98793878]
[1757685236176,0.06,238.61,238.54,13.59559401]
[1757685236362,0.06,238.61,238.55,47.21559401]
[1757685236568,0.06,238.61,238.55,47.86559401]
[1757685237581,0.06,238.61,238.55,44.4375873]
[1757685237868,0.06,238.61,238.55,52.0575873]
[1757685238246,0.06,238.61,238.55,4.19199329]
[1757685238442,0.71,238.6,238.55,63.79199329]
[1757685238642,0.06,238.61,238.55,64.44199329]
[1757685239877,0.06,238.61,238.55,145.28199329]
[1757685241155,0.06,238.61,238.55,144.63199329]
[1757685241575,0.06,238.61,238.55,145.28199329]
[1757685242066,0.06,238.61,238.55,141.09]
[1757685242478,0.06,238.61,238.55,145.28199329]
[1757685244476,0.06,238.61,238.55,155.76197652]
[1757685244679,0.06,238.61,238.58,26.0]
[1757685244861,0.06,238.61,238.58,59.52]
[1757685245060,0.06,238.61,238.58,60.17]
[1757685245962,0.06,238.61,238.58,73.76559401]
[1757685246164,0.06,238.61,238.58,154.60559401]
[1757685246362,1e-08,238.59,238.58,154.60559401]
[1757685246585,1e-08,238.59,238.58,158.79706018]
[1757685248192,0.2,238.69,238.64,26.0]
[1757685248358,0.2,238.69,238.68,26.0]
[1757685248553,0.2,238.69,238.68,63.66971007]
[1757685248986,0.2,238.69,238.68,144.44971006]
[1757685249284,0.2,238.69,238.68,110.96971006]
[1757685249879,0.2,238.69,238.68,144.44971006]
[1757685250478,0.91,238.69,238.68,144.44971006]
[1757685250683,0.91,238.69,238.68,140.23999999]
[1757685251660,0.91,238.69,238.68,144.42971006]
[1757685251859,0.2,238.69,238.68,144.42971006]
[1757685252460,0.91,238.69,238.68,140.23999999]
[1757685253282,0.91,238.69,238.68,110.96971006]
[1757685253487,0.91,238.69,238.68,140.19999999]
[1757685255089,0.2,238.69,238.68,144.38971006]
[1757685258406,0.2,238.69,238.68,145.03971006]
[1757685258605,0.06,238.72,238.7,80.57999999]
[1757685258770,0.06,238.72,238.68,193.72957926]
[1757685258771,0.06,238.72,238.71,72.99559401]
[1757685259169,0.06,238.72,238.71,73.64559401]
[1757685259889,0.06,238.72,238.71,77.83477753]
[1757685262379,0.1,238.73,238.72,13.59559401]
[1757685262580,0.1,238.73,238.72,94.825594]
[1757685263382,0.1,238.73,238.72,99.01460204]
[1757685264078,0.06,238.74,238.72,98.91460204]
[1757685264293,0.06,238.77,238.76,26.0]
[1757685264488,0.06,238.77,238.76,139.87999999]
[1757685264682,0.06,238.77,238.76,106.47999999]
[1757685264889,0.06,238.77,238.76,139.87999999]
[1757685265091,0.06,238.77,238.76,106.47999999]
[1757685265290,0.06,238.77,238.76,139.87999999]
[1757685265698,0.06,238.77,238.76,144.06830623]
[1757685269012,0.06,238.77,238.76,147.44455441]
[1757685269189,0.06,238.77,238.76,148.12455441]
[1757685269597,0.06,238.77,238.76,161.72014842]
[1757685269791,0.16,238.79,238.77,13.59559401]
[1757685269998,0.16,238.79,238.78,46.99559401]
[1757685270307,0.16,238.79,238.78,18.46354945]
[1757685270512,0.16,238.79,238.78,51.86354945]
[1757685270809,0.16,238.79,238.78,51.16354945]
[1757685276701,0.16,238.79,238.78,13.59559401]
[1757685277009,0.16,238.79,238.78,46.97559401]
[1757685277395,0.16,238.79,238.78,51.16354945]
[1757685278618,0.84,238.79,238.78,63.56795544]
[1757685279303,0.16,238.79,238.78,63.56795544]
[1757685279701,0.16,238.79,238.78,4.18795544]
[1757685280012,0.84,238.79,238.78,37.56795544]
[1757685281702,0.84,238.79,238.77,26.03]
[1757685281907,0.16,238.79,238.78,33.38]
[1757685282292,0.84,238.79,238.78,33.38]
[1757685282817,0.84,238.79,238.78,37.56795544]
[1757685283601,0.84,238.79,238.78,113.85999999]
[1757685283825,0.84,238.79,238.78,118.04795543]
[1757685286626,0.84,238.79,238.78,80.47999999]
[1757685286921,0.16,238.79,238.78,118.04795543]
[1757685287309,0.84,238.79,238.78,118.04795543]
[1757685287511,0.16,238.79,238.78,118.04795543]
[1757685287934,0.16,238.79,238.78,51.84354945]
[1757685289726,0.16,238.79,238.78,132.32354944]
[1757685290120,0.16,238.79,238.78,98.94354944]
[1757685290319,0.16,238.79,238.78,131.62354944]
[1757685290931,0.16,238.79,238.78,157.62354944]
[1757685291223,0.16,238.79,238.78,132.30354944]
[1757685291400,1e-08,238.79,238.78,263.70354944]
[1757685291598,0.06,238.81,238.8,39.59559401]
[1757685291908,0.06,238.81,238.8,285.25435446]
[1757685292234,0.06,238.82,238.8,285.515594]
[1757685292404,1e-08,238.82,238.81,14.27559401]
[1757685292611,1e-08,238.84,238.83,39.59559401]
[1757685292812,1e-08,238.84,238.83,72.95559401]
[1757685293127,1e-08,238.84,238.83,73.63559401]
[1757685293303,1e-08,238.84,238.83,77.82267268]
[1757685294202,1e-08,238.84,238.83,44.46267268]
[1757685294409,1e-08,238.84,238.83,77.82267268]
[1757685295615,1e-08,238.84,238.83,289.70267267]
[1757685296137,1e-08,238.84,238.83,256.34267267]
[1757685296309,1e-08,238.84,238.83,289.70267267]
[1757685297014,1e-08,238.84,238.83,256.34267267]
[1757685297199,1e-08,238.84,238.83,289.70267267]
[1757685297631,1e-08,238.84,238.83,44.46267268]
[1757685297817,1e-08,238.84,238.83,77.82267268]
[1757685300708,1e-08,238.84,238.83,43.78267268]
[1757685301027,1e-08,238.84,238.83,77.80267268]
[1757685302013,1e-08,238.84,238.83,77.12267268]
[1757685302531,1e-08,238.84,238.83,43.78267268]
[1757685302734,1e-08,238.84,238.83,77.12267268]
[1757685303825,1e-08,238.84,238.83,77.78267268]
[1757685304425,0.06,238.87,238.86,26.0]
[1757685304624,0.16,238.89,238.87,94.015594]
[1757685304936,0.88,238.89,238.88,46.93559401]
[1757685305434,0.16,238.89,238.88,46.93559401]
[1757685305633,0.16,238.89,238.88,47.59559401]
[1757685308941,0.16,238.89,238.88,48.01421423]
[1757685309436,0.16,238.89,238.88,68.01421423]
[1757685309844,0.1,238.96,238.92,39.59559401]
[1757685310135,0.1,238.96,238.94,13.59559401]
[1757685310342,0.1,238.96,238.94,14.01410911]
[1757685310537,0.1,238.96,238.95,47.59559401]
[1757685311117,0.1,238.96,238.95,46.93559401]
[1757685311319,0.1,238.96,238.95,47.59559401]
[1757685311527,0.1,238.96,238.95,48.0140916]
[1757685312154,0.1,238.96,238.95,47.59559401]
[1757685312628,0.1,238.96,238.95,48.0140916]
[1757685314028,1e-08,238.96,238.95,52.19906753]
[1757685314233,0.1,239.03,238.99,39.59559401]
[1757685314437,0.1,239.03,239.02,13.59559401]
[1757685314644,0.1,239.03,239.02,46.91559401]
[1757685315553,0.82,239.03,239.02,13.59559401]
[1757685315851,0.82,239.03,239.02,46.91559401]
[1757685316238,0.82,239.03,238.92,0.66]
[1757685316438,0.82,239.03,238.94,13.59559401]
[1757685316751,0.72,239.02,238.94,4.00797584]
[1757685317052,0.72,239.01,238.96,13.59559401]
[1757685317251,0.72,239.0,238.98,13.59559401]
[1757685317449,0.1,239.03,238.93,30.18532624]
[1757685317657,4.10797584,239.03,238.95,13.59559401]
[1757685317838,4.10797584,239.03,238.91,30.1]
[1757685318039,0.72,239.02,238.92,33.32]
[1757685318259,0.72,239.02,238.93,13.59559401]
[1757685318441,0.72,239.01,238.95,13.59559401]
[1757685318755,0.72,239.01,238.91,70.74977013]
[1757685318756,0.72,239.0,238.97,13.59559401]
[1757685318957,0.72,238.99,238.98,33.32]
[1757685319748,0.72,238.99,238.92,13.59559401]
[1757685320060,0.72,238.98,238.93,33.32]
[1757685320242,0.72,238.97,238.93,33.32]
[1757685320554,0.72,238.97,238.94,13.59559401]
[1757685320746,0.72,238.97,238.95,33.32]
[1757685320947,0.1,239.03,238.95,33.32]
[1757685321253,0.72,239.02,238.95,33.32]
[1757685321437,0.72,239.01,238.95,33.32]
[1757685321852,0.72,239.01,238.96,4.1848008]
[1757685322048,0.72,239.0,238.98,13.59559401]
[1757685322255,0.1,239.03,238.99,33.32]
[1757685322837,0.72,239.02,238.99,33.32]
[1757685323357,0.72,239.01,238.99,33.32]
[1757685323562,0.1,239.03,238.99,33.32]
[1757685323563,0.72,239.0,238.99,33.32]
[1757685323938,0.1,239.03,238.99,37.50417196]
[1757685324153,0.1,239.03,239.0,13.59559401]
[1757685324355,0.72,239.02,239.0,13.59559401]
[1757685324554,0.1,239.03,239.0,13.59559401]
[1757685324555,0.1,239.03,239.0,14.25559401]
[1757685324762,0.1,239.03,239.01,0.66]
[1757685324953,0.1,239.03,239.02,33.32]
[1757685325472,0.81,239.03,239.02,33.32]
[1757685326942,0.81,239.03,238.99,39.59559401]
[1757685327162,0.81,239.03,239.0,33.3]
[1757685328564,0.1,239.03,238.98,13.59559401]
[1757685328745,0.1,239.03,238.99,4.18427549]
[1757685328947,0.1,239.03,239.01,13.59559401]
[1757685329376,0.81,239.03,239.01,13.59559401]
[1757685329689,0.1,239.03,239.0,33.3]
[1757685330581,0.71,239.02,238.92,14.27559401]
[1757685330785,0.71,239.02,238.94,13.59559401]
[1757685330979,0.1,239.03,238.94,13.59559401]
[1757685331185,0.71,239.02,238.94,13.59559401]
[1757685331666,0.71,239.02,238.94,14.27559401]
[1757685332876,0.71,239.02,238.95,4.18497593]
[1757685333077,0.71,239.02,238.96,33.3]
[1757685333577,0.1,239.03,238.97,13.59559401]
[1757685333892,0.1,239.03,238.97,14.27559401]
[1757685334892,0.1,239.03,238.98,4.18445058]
[1757685335082,0.1,239.03,238.99,33.3]
[1757685335277,0.1,239.03,238.99,33.98]
[1757685335486,0.1,239.03,239.0,0.68]
[1757685335788,0.1,239.03,238.99,33.3]
[1757685336096,0.1,239.03,238.99,33.98]
[1757685336875,0.1,239.03,239.0,4.18410041]
[1757685338594,0.1,239.03,239.01,14.27559401]
[1757685338793,0.1,239.03,239.02,51.07934432]
[1757685339000,0.1,239.03,239.02,51.75934432]
[1757685340288,0.1,239.03,239.02,52.17771935]
[1757685340674,0.1,239.03,239.02,18.45934432]
[1757685341102,0.1,239.03,239.02,53.43168999]
[1757685341485,1e-08,239.03,239.02,53.43168999]
[1757685342997,1e-08,239.03,239.02,51.75934432]
[1757685343904,1e-08,239.03,239.02,71.75934432]
[1757685344885,1e-08,239.03,239.02,51.75934432]
[1757685347089,1e-08,239.03,239.02,52.17771935]
[1757685348090,1e-08,239.03,239.02,52.53934432]
[1757685349605,1e-08,239.03,239.02,52.95771935]
[1757685353111,1e-08,239.03,239.02,52.53934432]
[1757685354283,1e-08,239.06,239.02,62.9987201]
[1757685354490,0.71,239.17,239.16,26.0]
[1757685354689,0.71,239.17,239.16,60.02]
[1757685355720,0.71,239.17,239.16,73.61559401]
[1757685355906,0.1,239.19,239.17,13.59559401]
[1757685356089,0.1,239.19,239.18,47.63559401]
[1757685356488,0.81,239.19,239.18,47.63559401]
[1757685357590,0.81,239.19,239.18,51.81654559]
[1757685358200,0.81,239.19,239.18,47.63559401]
[1757685358810,0.1,239.19,239.18,47.63559401]
[1757685359224,0.1,239.19,239.18,51.81654559]
[1757685360614,0.1,239.19,239.18,47.63559401]
[1757685360818,0.1,239.19,239.18,51.81654559]
[1757685361523,0.81,239.19,239.18,51.81654559]
[1757685361904,0.81,239.19,239.18,47.59559401]
[1757685362106,0.81,239.19,239.18,51.77654559]
[1757685362289,0.81,239.19,239.18,47.59559401]
[1757685363214,0.81,239.19,239.18,51.77654559]
[1757685363499,0.81,239.19,239.18,47.59559401]
[1757685364327,0.1,239.29,239.18,62.93892455]
[1757685364497,0.71,239.27,239.22,39.59559401]